Cogmind - Beta 13 @@@ ROGUE MODE // 2024.04.16 @ 20:08:37 Player: RD-BNK(r) Result: Self-destructed Performance ------------- Evolutions (2) 1000 Regions Visited (5) 1000 Robots Destroyed (22) 110 Value Destroyed (516) 516 Prototype IDs (25) 500 Alien Tech Used (0) 0 Bonus (307) 307 TOTAL SCORE: 3433 Bonus ------- Follower Combat Kills 7 Aligned with FarCom 300 Cogmind --------- Core Integrity 550/550 Matter 250/300 Energy 250/250 System Corruption 0% Temperature Cool (0) Movement Treading (160) Location -8/Materials Parts ------- > --- POWER (1) -------- Ion Engine > --- PROPULSION (4) --- Improved Treads Improved Treads Improved Treads Improved Treads > --- UTILITY (4) ------ Large Storage Unit Structural Scanner Machine Analyzer > --- WEAPON (2) ------- Heavy EM Shotgun Heavy Flail > --- INVENTORY (15) --- Ion Engine Light Treads Light Treads Wheel Medium Matter Pod (100) Weight Redist. System 0b10 Alert Chip Splice Drone Bay (6/6) Autogun Autogun Autogun Slug Cannon Rocket Launcher Peak State ------------ > --- POWER ------------ Ion Engine > --- PROPULSION ------- Improved Treads Improved Treads Improved Treads Improved Treads > --- UTILITY ---------- Large Storage Unit Structural Scanner Machine Analyzer > --- WEAPON ----------- Heavy EM Shotgun Heavy Flail > --- INVENTORY -------- Ion Engine Light Treads Light Treads Wheel Medium Matter Pod Weight Redist. System 0b10 Alert Chip Splice Drone Bay Autogun Autogun Autogun Slug Cannon Rocket Launcher [Rating: 24] Favorites ----------- Power Ion Engine Engine Ion Engine Propulsion Improved Treads Treads Improved Treads Leg Aluminum Leg Wheel Wheel Utility Large Storage Unit Device Structural Scanner Storage Large Storage Unit Processor Machine Analyzer Weapon Autogun Energy Gun Heavy EM Shotgun Ballistic Gun Autogun Special Weapon Mining Laser Impact Weapon Heavy Flail Build | -11 -10 -10 -10 -9 -8 ------- Run | Yrd Mat Min Exi Min Mat Slots Evolved 4 | . . . . . 4 Power . | . . . . . . Propulsion 2 | . . . . . 2 Utility 2 | . . . . . 2 Weapon . | . . . . . . Parts Attached 29 | 3 14 5 . 2 5 Power 1 | . 1 . . . . Engine 1 | . 1 . . . . Core . | . . . . . . Reactor . | . . . . . . Propulsion 10 | 2 4 2 . . 2 Treads 8 | 2 2 2 . . 2 Leg . | . . . . . . Wheel 2 | . 2 . . . . Hover . | . . . . . . Flight . | . . . . . . Utility 7 | . 4 2 . . 1 Device 4 | . 2 1 . . 1 Storage 1 | . 1 . . . . Processor 2 | . 1 1 . . . Hackware . | . . . . . . Protection . | . . . . . . Artifact . | . . . . . . Weapon 11 | 1 5 1 . 2 2 Energy Gun 1 | . . . . . 1 Energy Cannon . | . . . . . . Ballistic Gun 7 | 1 4 . . 2 . Ballistic Cannon . | . . . . . . Launcher . | . . . . . . Special Weapon 1 | . 1 . . . . Impact Weapon 2 | . . 1 . . 1 Slashing Weapon . | . . . . . . Piercing Weapon . | . . . . . . Special Melee Weapon . | . . . . . . Unidentified Prototypes 2 | . . 1 . . 1 Parts Lost 1 | . 1 . . . . Power 1 | . 1 . . . . Propulsion . | . . . . . . Utility . | . . . . . . Weapon . | . . . . . . Highest Loss Streak 1 | . 1 . . . . To Critical Strikes . | . . . . . . Average Slot Usage (%) 93 | . 96 93 85 92 86 Engine 13 | . 13 14 14 14 9 Treads 18 | . 10 23 28 28 36 Wheel 9 | . 17 4 . . . Device 4 | . 8 . . . 5 Storage 13 | . 14 14 14 14 9 Processor 6 | . 1 7 14 14 9 Ballistic Gun 20 | . 26 27 . 13 8 Special Weapon 1 | . 1 . . . . Impact Weapon 2 | . . . 14 7 3 Naked Turns . | . . . . . . Heaviest Build 33 | 14 32 31 28 31 33 Greatest Support 92 | 40 52 46 46 46 92 Greatest Overweight (x) 1 | . 1 1 . . . Average Overweight (x) . | . . . . . . Largest Inventory Capacity 15 | 8 15 15 15 15 15 Average Capacity 14 | 8 14 15 15 15 15 Most Carried 15 | 6 14 15 15 15 14 Average Carried 13 | 4 11 14 14 14 13 Final Capacity 15 | 8 15 15 15 15 15 Final Carried 15 | 4 14 15 15 15 13 Class Distribution -------------------- 78% | Mutant 19% | Commander-Mutant Dominant Class ---------------- Mutant | -10/Materials Mutant | -10/Mines Commander-Mutant | -10/Exiles Mutant | -9/Mines Assassin | -8/Materials Resources | -11 -10 -10 -10 -9 -8 ----------- Run | Yrd Mat Min Exi Min Mat Matter Collected 1142 | 230 573 61 . 278 . Remotely . | . . . . . . Salvage Created 742 | . 443 44 . 255 . Parts 40 | . 28 1 . 11 . Haulers Intercepted 2 | . 2 . . . . Recyclers Shooed . | . . . . . . Parts Field Recycled . | . . . . . . Retrieved Matter . | . . . . . . Parts Self-Destructed . | . . . . . . Prevented . | . . . . . . Kills | -11 -10 -10 -10 -9 -8 ------- Run | Yrd Mat Min Exi Min Mat Combat Hostiles Destroyed 18 | . 11 1 . 6 . Guns 18 | . 11 1 . 6 . Classes Destroyed 5 | . 5 . . . . Worker 1 | . 1 . . . . Tunneler 1 | . 1 . . . . Hauler 2 | . 2 . . . . Swarmer 6 | . 6 . . . . Grunt 12 | . 5 1 . 6 . Best Kill Streak 4 | . 3 1 . 4 . Combat Bots Only 4 | . 3 1 . 4 . Max Kills in Single Turn 1 | . 1 1 . 1 . Gunslinging . | . . . . . . Exploded . | . . . . . . Melee . | . . . . . . Uniques/NPCs Destroyed . | . . . . . . Combat | -11 -10 -10 -10 -9 -8 -------- Run | Yrd Mat Min Exi Min Mat Hostile Shots Fired 83 | . 40 3 . 40 . Missed 16 | . 8 . . 8 . Damage Taken 811 | . 415 35 . 361 . Core 158 | . 79 . . 79 . Absorbed by Shields . | . . . . . . Core Remaining (%) 68 | 100 . . . 36 . Volleys Fired 68 | . 46 3 . 19 . Largest 2 | . 2 2 . 2 . Hottest 100 | . 100 46 . 46 . Shots Fired 133 | . 88 7 . 38 . Gun 131 | . 86 7 . 38 . Cannon . | . . . . . . Launcher . | . . . . . . Special 2 | . 2 . . . . Kinetic 131 | . 86 7 . 38 . Thermal 2 | . 2 . . . . Explosive . | . . . . . . Electromagnetic . | . . . . . . Robot Hit Streak 12 | . 12 8 . 9 . Robot Miss Streak 3 | . 3 . . 2 . Penetration Max . | . . . . . . Secondary Targets . | . . . . . . Shots Hit Robots 83 | . 54 5 . 24 . Core Hits 31 | . 20 2 . 9 . Critical Kills . | . . . . . . Critical Parts Destroyed 1 | . 1 . . . . Critical Strikes 1 | . 1 . . . . Destroy 1 | . 1 . . . . Melee Attacks 12 | . . . . 10 2 Impact 12 | . . . . 10 2 Slashing . | . . . . . . Piercing . | . . . . . . Sneak Attacks . | . . . . . . Combat Hostiles . | . . . . . . Follow-up Attacks . | . . . . . . Damage Inflicted 1300 | . 829 78 . 393 . Guns 1276 | . 805 78 . 393 . Cannons . | . . . . . . Explosions . | . . . . . . Melee . | . . . . . . Ramming . | . . . . . . Kinetic 1276 | . 805 78 . 393 . Thermal 24 | . 24 . . . . Explosive . | . . . . . . Electromagnetic . | . . . . . . Impact . | . . . . . . Slashing . | . . . . . . Piercing . | . . . . . . Highest Corruption 1 | . 1 1 1 1 . Average Corruption 1 | . 1 1 1 1 . Corruption Purged . | . . . . . . Corruption Blocked . | . . . . . . Effects 40 | . 14 10 5 11 . Message Errors 7 | . . 3 1 3 . Matter Fused 10 | . 3 1 1 5 . Heat Flow Errors 8 | . 4 2 2 . . Energy Discharges 5 | . 2 1 1 1 . Data Loss (minor) 7 | . 4 1 . 2 . Data Loss (major) 1 | . . 1 . . . Misfires 2 | . 1 1 . . . Overload Shots . | . . . . . . Overflow Damage . | . . . . . . Projectiles . | . . . . . . Explosions . | . . . . . . Melee . | . . . . . . Knockbacks . | . . . . . . Impact . | . . . . . . Kinetic . | . . . . . . Secondary . | . . . . . . Self-Inflicted Damage . | . . . . . . Shots . | . . . . . . Rammed . | . . . . . . Targets Rammed . | . . . . . . Kicked . | . . . . . . Crushed . | . . . . . . Highest Temperature 251 | . 251 244 218 94 . Average Temperature 56 | . 54 75 95 40 . Received Heat Transfer 372 | . 156 18 . 198 . Effects 2 | . 2 . . . . Interference 2 | . 2 . . . . Siege Activations . | . . . . . . Robots Corrupted . | . . . . . . Combat Hostiles . | . . . . . . Parts Fried . | . . . . . . Impact Corruptions . | . . . . . . Robots Melted . | . . . . . . Combat Hostiles . | . . . . . . Parts Melted . | . . . . . . Heat Transferred 50 | . 50 . . . . Parts Sabotaged . | . . . . . . Parts Stolen . | . . . . . . Parts Stripped . | . . . . . . Power Chain Reactions . | . . . . . . Alert | -11 -10 -10 -10 -9 -8 ------- Run | Yrd Mat Min Exi Min Mat Peak Influence 266 | . 266 36 . 120 2 Initial 11 | . . 11 . . . Average 59 | . 89 11 . 33 . Maximum Alert Level 1 | . 1 . . . . Low Security (%) 89 | 100 80 100 . 100 100 Level 1 10 | . 19 . . . . Level 2 . | . . . . . . Level 3 . | . . . . . . Level 4 . | . . . . . . Level 5 . | . . . . . . High Security . | . . . . . . Max Security . | . . . . . . Squads Dispatched 2 | . 1 1 . . . Investigation 2 | . 1 1 . . . Extermination . | . . . . . . Reinforcement . | . . . . . . Assault . | . . . . . . Garrison . | . . . . . . Intercept . | . . . . . . Searches Triggered . | . . . . . . Construction Impeded . | . . . . . . Haulers Reinforced . | . . . . . . Active Scanning Responses . | . . . . . . Cargo Convoy Interrupts . | . . . . . . Stealth | -11 -10 -10 -10 -9 -8 --------- Run | Yrd Mat Min Exi Min Mat Distress Signals 3 | . 2 . . 1 . Communications Jammed . | . . . . . . Distress Signals . | . . . . . . Times Spotted 41 | . 34 1 . 6 . Peak Tracking Total 3 | . 3 1 . 3 . Tactical Retreats 2 | . 2 . . . . Traps | -11 -10 -10 -10 -9 -8 ------- Run | Yrd Mat Min Exi Min Mat Traps Triggered 2 | . 2 . . . . Indirectly . | . . . . . . Trap Hack Attempts . | . . . . . . Triggered . | . . . . . . Disarmed . | . . . . . . Reprogrammed . | . . . . . . Reused . | . . . . . . Traps Extracted . | . . . . . . Installed . | . . . . . . Triggered . | . . . . . . Machines | -11 -10 -10 -10 -9 -8 ---------- Run | Yrd Mat Min Exi Min Mat Machines Disabled 1 | . 1 . . . . Max in Single Turn 1 | . 1 . . . . Machines Repaired . | . . . . . . Machines Dismantled . | . . . . . . Machines Sabotaged . | . . . . . . Overloaded Fab Kills . | . . . . . . Hacking | -11 -10 -10 -10 -9 -8 --------- Run | Yrd Mat Min Exi Min Mat Machines Accessed 13 | . 10 2 1 . . Terminals 8 | . 8 . . . . Fabricators . | . . . . . . Repair Stations 1 | . 1 . . . . Recycling Units 1 | . 1 . . . . Scanalyzers . | . . . . . . Garrison Access . | . . . . . . Total Hacks 28 | . 25 2 1 . . Successful 11 | . 8 2 1 . . Failed 17 | . 17 . . . . Catastrophic 2 | . 2 . . . . Database Lockouts . | . . . . . . Manual 19 | . 18 . 1 . . Terminals 23 | . 23 . . . . Fabricators . | . . . . . . Repair Stations 1 | . 1 . . . . Recycling Units 1 | . 1 . . . . Scanalyzers . | . . . . . . Garrison Access . | . . . . . . Terminal Hacks 4 | . 1 2 1 . . Open Door 2 | . . 2 . . . Terminal Index 1 | . 1 . . . . Derelict Proto ID Bank 1 | . . . 1 . . Fabricator Hacks . | . . . . . . Repair Station Hacks . | . . . . . . Recycling Unit Hacks . | . . . . . . Scanalyzer . | . . . . . . Garrison Access Hacks . | . . . . . . Unauthorized Hacks 7 | . 7 . . . . Terminals 5 | . 5 . . . . Assimilate 3 | . 3 . . . . Botnet 1 | . 1 . . . . Operators 1 | . 1 . . . . Fabricators . | . . . . . . Repair Stations 1 | . 1 . . . . Mechanics 1 | . 1 . . . . Recycling Units 1 | . 1 . . . . Recyclers 1 | . 1 . . . . Scanalyzers . | . . . . . . Garrison Access . | . . . . . . Data Cores Recovered . | . . . . . . Used . | . . . . . . Hacking Detections 9 | . 9 . . . . Full Trace Events 1 | . 1 . . . . Feedback Events . | . . . . . . Feedback Blocked . | . . . . . . Robot Schematics Acquired . | . . . . . . Robots Built . | . . . . . . Authchips . | . . . . . . Time . | . . . . . . Total Robot Build Rating . | . . . . . . Part Schematics Acquired . | . . . . . . Parts Built . | . . . . . . Authchips . | . . . . . . Time . | . . . . . . Total Part Build Rating . | . . . . . . Parts Repaired . | . . . . . . Time . | . . . . . . Parts Recycled . | . . . . . . Recycled Matter . | . . . . . . Retrieved Matter . | . . . . . . Retrieved Components . | . . . . . . Parts Scanalyzed . | . . . . . . Part Schematics Acquired . | . . . . . . Parts Damaged . | . . . . . . Bothacking | -11 -10 -10 -10 -9 -8 ------------ Run | Yrd Mat Min Exi Min Mat Used RIF Installer . | . . . . . . Robots Hacked . | . . . . . . Non-combat . | . . . . . . Combat . | . . . . . . Robot Hacks Applied . | . . . . . . Relay Couplers Released . | . . . . . . Fabnet Peak Effective % . | . . . . . . Robots Rewired . | . . . . . . Allies Hacked . | . . . . . . Hacks Repelled . | . . . . . . Allies | -11 -10 -10 -10 -9 -8 -------- Run | Yrd Mat Min Exi Min Mat Total Allies 5 | . 2 3 . . . Largest Group 5 | . 2 5 5 5 . Highest-Rated Group 60 | . 20 60 60 60 . Highest-Rated Ally 16 | . 10 16 16 16 . Total Orders 10 | . 2 8 . . . STAY 5 | . 1 4 . . . FOLLOW 4 | . 1 3 . . . RETURN 1 | . . 1 . . . Ally Attacks 14 | . . 6 . 8 . Total Damage 148 | . . 54 . 94 . Kills 1 | . . 1 . . . Allies Corrupted . | . . . . . . Allies Melted . | . . . . . . Intel | -11 -10 -10 -10 -9 -8 ------- Run | Yrd Mat Min Exi Min Mat Robot Analysis Total . | . . . . . . Derelict Logs Recovered 1 | . . . . 1 . Drone Launches 1 | . . 1 . . . Drone Recoveries 1 | . . 1 . . . Exploration | -11 -10 -10 -10 -9 -8 ------------- Run | Yrd Mat Min Exi Min Mat Turns Passed 4205 | 16 2106 682 330 967 104 Spaces Moved 2323 | 7 1256 273 206 525 56 Core . | . . . . . . Treads 1418 | 7 402 222 206 525 56 Legs . | . . . . . . Wheels 905 | . 854 51 . . . Hover . | . . . . . . Flight . | . . . . . . Fastest Speed 95 | 160 95 95 160 160 160 Average Speed 134 | 160 115 147 160 160 160 Slowest Speed 160 | 160 160 160 160 160 160 Overloaded Moves . | . . . . . . Propulsion Burnouts . | . . . . . . Robots Hopped . | . . . . . . Cave-ins Triggered . | . . . . . . Exploration Rate (%) 51 | 2 99 43 60 96 7 Regions Visited 5 Branch Regions 3 Pre-discovered Areas 1 | . . . . 1 . Known Exits Taken 1 | . 1 . . . . Unknown Exits Taken 4 | 1 . 1 1 1 . Scrap Searched 2 | . . . . 2 . Spaces Dug 3 | . 1 . . . 2 Terrain Destroyed 3 | . 1 . . . 2 Melee 2 | . . . . . 2 Projectile 1 | . 1 . . . . AOE . | . . . . . . Terrain Rammed . | . . . . . . Walls Destroyed . | . . . . . . Machines Disabled . | . . . . . . Actions | -11 -10 -10 -10 -9 -8 --------- Run | Yrd Mat Min Exi Min Mat Total 3268 | 11 1831 547 207 606 66 Wait 810 | . 500 259 . 50 1 Move 2318 | 6 1255 272 205 524 56 Hop . | . . . . . . Pick Up 15 | . 9 3 1 1 1 Fast Attach 6 | . 4 1 . . 1 Attach 5 | . 1 . . 1 3 Detach 4 | . 2 2 . . . Swap 18 | 3 9 4 . 1 1 Drop 12 | 2 5 3 1 . 1 Fire 68 | . 46 3 . 19 . Melee 12 | . . . . 10 2 Ram . | . . . . . . Kick . | . . . . . . Crush . | . . . . . . Escape Stasis . | . . . . . . Rewire . | . . . . . . Trap . | . . . . . . Miscellaneous . | . . . . . . Route ------- -11/Scrapyard -10/Materials (discovered 4 exits: *Mat x3 / *Min) -10/Mines (discovered 2 exits: *Mat / *Exi) -10/Exiles -9/Mines (discovered 2 exits: [*Mat x2]) -8/Materials History --------- Turn | Location | Event 7 | -11/Scrapyard | Discovered new exit (range 2) 17 | -11/Scrapyard | Entered Materials 168 | -10/Materials | Discovered new exit (range 12) 234 | -10/Materials | Discovered new exit (range 16) 302 | -10/Materials | Build established: Mutant 458 | -10/Materials | Discovered new exit (range 4) 1130 | -10/Materials | Discovered new exit (range 16) 1928 | -10/Materials | Identified exit to Materials 2028 | -10/Materials | Identified exit to Mines 2123 | -10/Materials | Entered Mines 2123 | -10/Mines | Accompanied by 2 allies 2126 | -10/Mines | Found the Drone Emporium 2130 | -10/Mines | Found Prototype Device 2131 | -10/Mines | Identified Splice Drone Bay 2146 | -10/Mines | Assembled infested the area 2151 | -10/Mines | Assisted by a Guerilla fighting off Assembled 2429 | -10/Mines | Met a Derelict shopkeep closing up shop 2572 | -10/Mines | Assisted by bots powering up and referring to "LRC-V3" 2615 | -10/Mines | A weapon hastily lodged in a ceiling crevice suddenly fell to the ground 2635 | -10/Mines | Deemed a non-threat by the Exiles lab entrance 2635 | -10/Mines | Discovered new exit (range 5) 2703 | -10/Mines | Discovered exit to Materials (range 7) 2805 | -10/Mines | Entered Exiles 2805 | -10/Exiles | Accompanied by 5 allies 2844 | -10/Exiles | Met 8R-AWN 2857 | -10/Exiles | Build established: Commander-Mutant 2871 | -10/Exiles | Met EX-HEX 2916 | -10/Exiles | Met EX-BIN 2933 | -10/Exiles | Aligned with FarCom system 2935 | -10/Exiles | Given EX-Vault access code 2972 | -10/Exiles | Opened EX-Vault 2987 | -10/Exiles | Found 0b10 Alert Chip 3020 | -10/Exiles | Warned to stay clear of 0b10 Research branches 3065 | -10/Exiles | Met EX-DEC 3121 | -10/Exiles | Discovered new exit (range 11) 3135 | -10/Exiles | Left Exiles lab with 0b10 Alert Chip 3135 | -10/Exiles | Entered Mines 3135 | -9/Mines | Accompanied by 5 allies 3277 | -9/Mines | Learned location of Storage (-7) 3389 | -9/Mines | Excavation squad dispatched 3389 | -9/Mines | A large section of the Mines collapsed 3497 | -9/Mines | Found a damaged Exp. Sensor Array with a note attached 3639 | -9/Mines | Excavation squad dispatched 3681 | -9/Mines | Core integrity fell below 50% 3701 | -9/Mines | Build established: Mutant 3771 | -9/Mines | Discovered new exit (range 6) 3829 | -9/Mines | Received a Rocket Launcher from a helpful Derelict 3870 | -9/Mines | Discovered new exit (range 15) 4102 | -9/Mines | Entered Materials 4102 | -8/Materials | Evolved 4 slots: Propulsion x2, Utility x2 4206 | -8/Materials | Self-destructed Last Messages --------------- 03866_ System corrupted: Matter fused (-10). 03870_ EXIT=FOUND 03899_ Searching scrap... 03899_ Found Field Recycling Unit. 03899_ Found 43 Matter. 03900_ Acquired 10 matter. 03910_ System corrupted: Component data lost. PARAMETERS=PROPULSION+2,UTILITY+2 LOCATION=UNKNOWN GOAL=ESCAPE 04102_ Receiving FarCom transmissions... 04117_ >> Machine Analyzer network decryption results: 04117_ Scanalyzer x1 04133_ Dropped Autogun. 04133_ Acquired Prototype Energy Gun. 04133_ Identified Hvy. EM Shotgun. 04136_ Acquired Autogun. 04193_ >> Machine Analyzer network decryption results: 04193_ Repair Station x1 04198_ K-01 Serf cleans the Repair Station. Map ----- +----------------------------------------------------+ | ?????????????????????????????????????????????????? | | ?????????????????????????????????????????????????? | | ?????????????????????????????????????????????????? | | ?????????????????????????????????????????????????? | | ?????????????????????????????????????????????????? | | ?????????????????????????????????????????????????? | | ?????????????????????????????????????????????????? | | ?????????????????????????????????????????????????? | | ?????????????????????????????????????????????????? | | ?????????????????????????????????????????????????? | | ??????????????????????s?sw???????????????????????? | | ?????????????????????????s???????????????????????? | | ?????????????????????????t???????????????????????? | | ????????????????????????? ???????????????????????? | | ???????????????????????## ???????????????????????? | | ???????????????????????## ???????????????????????? | | ???????????????????????##u######### ?????????????? | | ?????????????"""???????##/######### ?????????????? | | ?????????????"R"???????## # ?????????????? | | ?????????????"?"???????## """ # ?????????????? | | ??????????????????????? # ""R" # ?????????????? | | ??????????????????????? g "" " # ?????????????? | | ??????????????"""?????? # k # ????????????? | | ??????????????"""?? # ? #! u + ##?????????? | | ??????????????"""?? # ? # # # ?????????? | | ??????????????????? # #@ !# # ?????????? | | ???????????????????## ######;#### # ?????????? | | ???????????????????## # ?????????? | | ???????????????????## + ?????????? | | ???????????????????## # ?????????? | | ???????????????????##########+##### # ?????????? | | ???????????????????##### ## # ?????????? | | ??????????????????????##! ## # ### | | ??????????????????????## """ ## ############ | | ??????????????????????## """"" ## # | | ??????????????????????## """"" ## # | | ??????????????????????## """"" ## # | | ??????????????????????## """ #####+### ## | | ??????????????????????## " # ## | | ??????????????????????############ "" #! !## | | ??????????????????????############ S"" ##!!!!### | | ????????????????????????????????## "" ######### | | ????????????????????????????????## ##?#####? | | ????????????????????????????????###########??????? | | | | | | | | | | | | | +----------------------------------------------------+ Best States ------------- Heat Dissipation 31 Energy Generation 10 Energy Capacity 250 Matter Stores 300 Matter Capacity 300 Sight Range 16 Terrain Scan Density 10 Additional Mass Support 6 Evasion (%) 41 Recoil Reduction 4 Item Schematics ----------------- None Robot Schematics ------------------ None Fabricated ------------ Nothing Alien Tech Used ----------------- None Achievements -------------- None Challenges ------------ None Game ------ Seed BurstLightTorch Manual? 0 Play Time 00:45:10 Cumulative 57.8 hours Start 2024.04.15 @ 22:01:04 End 2024.04.16 @ 20:08:37 Sessions 6 Manual Loads 0 Difficulty Rogue Special Mode None Game No. 89 Rogue 89 Adventurer 0 Explorer 0 Win Type - Total 1 Types 1/0/0/0/0/0/0/0/0 Lore% 27 Gallery% 30 Achievement% 31 Wizard Run 0 Options --------- Layout 0 ASCII 0 Keyboard 0 Movement Mouse Keybinds 0 Fullscreen 2 Font 18/X11Bold Map View 76x50 Zoom Use 0% Tactical HUD 1 Map Filters NONE Filters NONE Steam 1 RUN: f4d19909-6da4-4d0c-a5e6-740fc4459f24